Cogmind - Beta 13 @@@ ROGUE MODE // 2024.04.16 @ 21:47:23 Player: Zaros426 Result: Self-destructed Performance ------------- Evolutions (1) 500 Regions Visited (5) 1000 Robots Destroyed (13) 65 Value Destroyed (248) 248 Prototype IDs (0) 0 Alien Tech Used (0) 0 Bonus (558) 558 TOTAL SCORE: 2371 Bonus ------- Follower Combat Kills 72 Met Imprinter 300 Was Imprinted 300 Friendly Fire -114 Cogmind --------- Core Integrity 43/400 Matter 220/300 Energy 100/100 System Corruption 1% Temperature Cool (11) Movement Core (700) Ox13 Location -7/Zion Parts ------- > --- POWER (1) -------- (None) > --- PROPULSION (2) --- (None) > --- UTILITY (4) ------ High-capacity Storage Unit 0b10 Decoder Chip [Skirmisher] > --- WEAPON (2) ------- (None) > --- INVENTORY (20) --- Improved Treads Advanced Treads Cooling System Cooling System Medium Storage Unit Compact Battery (200) Improved Terrain Scanner Improved Terrain Scanner Terrain Scan Processor 0b10 Decoder Chip [Generic] 0b10 Decoder Chip [Looter] 0b10 Decoder Chip [Scout] 0b10 Decoder Chip [Skirmisher] Kinecellerator Improved Light Armor Plating Improved Light Armor Plating Improved Light Armor Plating Gauss Cannon Peak State ------------ > --- POWER ------------ Ion Engine > --- PROPULSION ------- Wheel Wheel > --- UTILITY ---------- High-capacity Storage Unit Seismic Detector 0b10 Decoder Chip [Skirmisher] Improved Light Armor Plating > --- WEAPON ----------- Gauss Cannon Rocket Launcher > --- INVENTORY -------- Improved Treads Advanced Treads Cooling System Cooling System Medium Storage Unit Compact Battery Improved Terrain Scanner Improved Terrain Scanner Terrain Scan Processor 0b10 Decoder Chip [Generic] 0b10 Decoder Chip [Looter] 0b10 Decoder Chip [Scout] 0b10 Decoder Chip [Skirmisher] Kinecellerator Improved Light Armor Plating Improved Light Armor Plating Improved Light Armor Plating Rocket Launcher Maul [Rating: 24] Favorites ----------- Power Ion Engine Engine Ion Engine Propulsion Wheel Wheel Wheel Utility Improved Light Armor Plating Device Seismic Detector Storage High-capacity Storage Unit Processor 0b10 Decoder Chip [Skirmisher] Protection Improved Light Armor Plating Weapon Particle Gun Energy Gun Particle Gun Ballistic Gun Heavy Assault Rifle Ballistic Cannon Gauss Cannon Launcher Rocket Launcher Impact Weapon Maul Build | -11 -10 -10 -9 -9 -7 ------- Run | Yrd Mat Min Mat Min Zio Slots Evolved 2 | . . . 2 . . Power . | . . . . . . Propulsion . | . . . . . . Utility 2 | . . . 2 . . Weapon . | . . . . . . Parts Attached 22 | 8 . 4 5 . 5 Power 2 | 1 . 1 . . . Engine 2 | 1 . 1 . . . Core . | . . . . . . Reactor . | . . . . . . Propulsion 4 | 3 . . 1 . . Treads . | . . . . . . Leg . | . . . . . . Wheel 4 | 3 . . 1 . . Hover . | . . . . . . Flight . | . . . . . . Utility 9 | 3 . 2 3 . 1 Device 3 | 2 . 1 . . . Storage 3 | 1 . 1 1 . . Processor 1 | . . . . . 1 Hackware . | . . . . . . Protection 2 | . . . 2 . . Artifact . | . . . . . . Weapon 7 | 1 . 1 1 . 4 Energy Gun 1 | . . 1 . . . Energy Cannon . | . . . . . . Ballistic Gun 2 | 1 . . 1 . . Ballistic Cannon 1 | . . . . . 1 Launcher 2 | . . . . . 2 Special Weapon . | . . . . . . Impact Weapon 1 | . . . . . 1 Slashing Weapon . | . . . . . . Piercing Weapon . | . . . . . . Special Melee Weapon . | . . . . . . Unidentified Prototypes . | . . . . . . Parts Lost 9 | . . 1 . . 8 Power 1 | . . . . . 1 Propulsion 2 | . . . . . 2 Utility 3 | . . 1 . . 2 Weapon 3 | . . . . . 3 Highest Loss Streak 8 | . . 1 . . 8 To Critical Strikes . | . . . . . . Average Slot Usage (%) 92 | . 85 97 89 100 91 Engine 11 | . 14 14 11 11 10 Wheel 23 | . 28 28 22 22 21 Device 11 | . 14 12 11 11 10 Storage 11 | . 14 14 11 11 11 Processor 1 | . . . . . 2 Protection 15 | . . . 20 22 19 Energy Gun 6 | . . 13 11 11 3 Ballistic Gun 5 | . 14 14 2 11 3 Ballistic Cannon 4 | . . . . . 6 Naked Turns . | . . . . . . Heaviest Build 59 | 13 13 21 58 58 59 Greatest Support 26 | 26 20 20 20 20 20 Greatest Overweight (x) 3 | 1 . 1 2 2 3 Average Overweight (x) 1 | . . . 1 2 2 Largest Inventory Capacity 20 | 8 8 10 20 20 20 Average Capacity 16 | 7 8 8 15 20 20 Most Carried 20 | 5 5 8 12 12 20 Average Carried 13 | 2 5 7 10 12 16 Final Capacity 20 | 8 8 10 20 20 20 Final Carried 18 | 5 5 8 12 12 18 Class Distribution -------------------- 94% | Scavenger-Mutant 5% | Mutant Dominant Class ---------------- Scavenger-Mutant | -10/Mines Scavenger-Mutant | -9/Materials Scavenger-Mutant | -9/Mines Scavenger-Mutant | -7/Zion Resources | -11 -10 -10 -9 -9 -7 ----------- Run | Yrd Mat Min Mat Min Zio Matter Collected 464 | 296 . 81 40 16 31 Remotely . | . . . . . . Salvage Created 322 | 40 . 149 69 . 64 Parts 28 | 6 . 13 5 . 4 Haulers Intercepted 1 | . . . 1 . . Recyclers Shooed 1 | 1 . . . . . Parts Field Recycled . | . . . . . . Retrieved Matter . | . . . . . . Parts Self-Destructed 1 | . . . . . 1 Prevented . | . . . . . . Kills | -11 -10 -10 -9 -9 -7 ------- Run | Yrd Mat Min Mat Min Zio Combat Hostiles Destroyed 5 | . . 2 . . 3 Guns 2 | . . 2 . . . AOE 3 | . . . . . 3 Classes Destroyed 7 | 1 . 1 2 . 3 Tunneler 5 | 2 . 3 . . . Hauler 1 | . . . 1 . . Watcher 1 | . . . 1 . . Grunt 2 | . . 2 . . . Zionite 1 | . . . . . 1 Wasp 2 | . . . . . 2 Butcher 1 | . . . . . 1 Best Kill Streak 4 | 1 . 2 1 . 4 Combat Bots Only 3 | . . 2 . . 3 Max Kills in Single Turn 2 | 1 . 1 1 . 2 Gunslinging . | . . . . . . Exploded 1 | . . . . . 1 Melee . | . . . . . . Uniques/NPCs Destroyed . | . . . . . . Combat | -11 -10 -10 -9 -9 -7 -------- Run | Yrd Mat Min Mat Min Zio Hostile Shots Fired 108 | . 2 16 5 . 85 Missed 31 | . 1 5 2 . 23 Damage Taken 1212 | . 10 140 25 . 1037 Core 391 | . 10 24 . . 357 Absorbed by Shields . | . . . . . . Core Remaining (%) 93 | 100 . 86 . . . Volleys Fired 41 | 7 1 14 10 . 9 Largest 2 | 1 1 2 2 . 2 Hottest 88 | 20 20 85 88 . 66 Shots Fired 47 | 7 1 17 11 . 11 Gun 36 | 7 1 17 11 . . Cannon 4 | . . . . . 4 Launcher 7 | . . . . . 7 Special . | . . . . . . Kinetic 28 | 7 1 14 2 . 4 Thermal 12 | . . 3 9 . . Explosive 7 | . . . . . 7 Electromagnetic . | . . . . . . Robot Hit Streak 5 | 5 . 4 4 . . Robot Miss Streak 3 | 1 1 2 3 . . Penetration Max . | . . . . . . Secondary Targets . | . . . . . . Shots Hit Robots 21 | 6 . 11 4 . . Core Hits 26 | 3 . 9 2 . 12 Critical Kills . | . . . . . . Critical Parts Destroyed . | . . . . . . Critical Strikes . | . . . . . . Melee Attacks 3 | . . . . . 3 Impact 3 | . . . . . 3 Slashing . | . . . . . . Piercing . | . . . . . . Sneak Attacks . | . . . . . . Combat Hostiles . | . . . . . . Follow-up Attacks . | . . . . . . Damage Inflicted 631 | 73 . 139 110 . 309 Guns 321 | 73 . 138 110 . . Cannons . | . . . . . . Explosions 309 | . . . . . 309 Melee . | . . . . . . Ramming 1 | . . 1 . . . Kinetic 210 | 73 . 122 15 . . Thermal 111 | . . 16 95 . . Explosive 309 | . . . . . 309 Electromagnetic . | . . . . . . Impact . | . . . . . . Slashing . | . . . . . . Piercing . | . . . . . . Highest Corruption 1 | . . . . . 1 Average Corruption 1 | . . . . . 1 Corruption Purged . | . . . . . . Corruption Blocked . | . . . . . . Overload Shots . | . . . . . . Overflow Damage 28 | . . . . . 28 Projectiles . | . . . . . . Explosions 28 | . . . . . 28 Melee . | . . . . . . Knockbacks . | . . . . . . Impact . | . . . . . . Kinetic . | . . . . . . Secondary . | . . . . . . Self-Inflicted Damage 111 | . . . . . 111 Shots 5 | . . . . . 5 Rammed 1 | . . 1 . . . Targets Rammed 1 | . . 1 . . . Kicked . | . . . . . . Crushed . | . . . . . . Highest Temperature 78 | . . 24 78 . 42 Average Temperature 18 | . . 11 29 . 7 Received Heat Transfer 330 | . 6 78 . . 246 Siege Activations . | . . . . . . Robots Corrupted . | . . . . . . Combat Hostiles . | . . . . . . Parts Fried . | . . . . . . Impact Corruptions . | . . . . . . Robots Melted . | . . . . . . Combat Hostiles . | . . . . . . Parts Melted . | . . . . . . Heat Transferred 259 | . . 37 222 . . Parts Sabotaged . | . . . . . . Parts Stolen . | . . . . . . Parts Stripped . | . . . . . . Power Chain Reactions . | . . . . . . Alert | -11 -10 -10 -9 -9 -7 ------- Run | Yrd Mat Min Mat Min Zio Peak Influence 157 | 10 6 95 157 61 . Initial 61 | . 6 1 . 61 . Average 66 | 3 6 71 78 61 . Maximum Alert Level . | . . . . . . Low Security (%) 100 | 100 100 100 100 100 . Level 1 . | . . . . . . Level 2 . | . . . . . . Level 3 . | . . . . . . Level 4 . | . . . . . . Level 5 . | . . . . . . High Security . | . . . . . . Max Security . | . . . . . . Squads Dispatched 1 | . 1 . . . . Investigation . | . . . . . . Extermination . | . . . . . . Reinforcement 1 | . 1 . . . . Assault . | . . . . . . Garrison . | . . . . . . Intercept . | . . . . . . Searches Triggered . | . . . . . . Construction Impeded . | . . . . . . Haulers Reinforced . | . . . . . . Active Scanning Responses . | . . . . . . Cargo Convoy Interrupts . | . . . . . . Stealth | -11 -10 -10 -9 -9 -7 --------- Run | Yrd Mat Min Mat Min Zio Distress Signals 2 | . . . 2 . . Communications Jammed . | . . . . . . Distress Signals . | . . . . . . Times Spotted 29 | . 2 4 9 . 14 Peak Tracking Total 13 | . 1 2 3 . 13 Tactical Retreats 1 | . . 1 . . . Traps | -11 -10 -10 -9 -9 -7 ------- Run | Yrd Mat Min Mat Min Zio Traps Triggered . | . . . . . . Indirectly . | . . . . . . Trap Hack Attempts . | . . . . . . Triggered . | . . . . . . Disarmed . | . . . . . . Reprogrammed . | . . . . . . Reused . | . . . . . . Traps Extracted . | . . . . . . Installed . | . . . . . . Triggered . | . . . . . . Machines | -11 -10 -10 -9 -9 -7 ---------- Run | Yrd Mat Min Mat Min Zio Machines Disabled 1 | . . . . . 1 Max in Single Turn 1 | . . . . . 1 Machines Repaired . | . . . . . . Machines Dismantled . | . . . . . . Machines Sabotaged . | . . . . . . Overloaded Fab Kills . | . . . . . . Hacking | -11 -10 -10 -9 -9 -7 --------- Run | Yrd Mat Min Mat Min Zio Machines Accessed 1 | . . . 1 . . Terminals 1 | . . . 1 . . Fabricators . | . . . . . . Repair Stations . | . . . . . . Recycling Units . | . . . . . . Scanalyzers . | . . . . . . Garrison Access . | . . . . . . Total Hacks 1 | . . . 1 . . Successful 1 | . . . 1 . . Failed . | . . . . . . Catastrophic . | . . . . . . Database Lockouts . | . . . . . . Manual 6 | . . . . . 6 Terminals 1 | . . . 1 . . Fabricators . | . . . . . . Repair Stations . | . . . . . . Recycling Units . | . . . . . . Scanalyzers . | . . . . . . Garrison Access . | . . . . . . Terminal Hacks 1 | . . . 1 . . Locate Traps 1 | . . . 1 . . Fabricator Hacks . | . . . . . . Repair Station Hacks . | . . . . . . Recycling Unit Hacks . | . . . . . . Scanalyzer . | . . . . . . Garrison Access Hacks . | . . . . . . Unauthorized Hacks . | . . . . . . Terminals . | . . . . . . Fabricators . | . . . . . . Repair Stations . | . . . . . . Recycling Units . | . . . . . . Scanalyzers . | . . . . . . Garrison Access . | . . . . . . Data Cores Recovered . | . . . . . . Used . | . . . . . . Hacking Detections . | . . . . . . Full Trace Events . | . . . . . . Feedback Events . | . . . . . . Feedback Blocked . | . . . . . . Robot Schematics Acquired 4 | . . . . . 4 Robots Built . | . . . . . . Authchips . | . . . . . . Time . | . . . . . . Total Robot Build Rating . | . . . . . . Part Schematics Acquired 14 | . . . . . 14 Parts Built . | . . . . . . Authchips . | . . . . . . Time . | . . . . . . Total Part Build Rating . | . . . . . . Parts Repaired . | . . . . . . Time . | . . . . . . Parts Recycled . | . . . . . . Recycled Matter . | . . . . . . Retrieved Matter . | . . . . . . Retrieved Components . | . . . . . . Parts Scanalyzed . | . . . . . . Part Schematics Acquired . | . . . . . . Parts Damaged . | . . . . . . Bothacking | -11 -10 -10 -9 -9 -7 ------------ Run | Yrd Mat Min Mat Min Zio Used RIF Installer . | . . . . . . Robots Hacked . | . . . . . . Non-combat . | . . . . . . Combat . | . . . . . . Robot Hacks Applied . | . . . . . . Relay Couplers Released . | . . . . . . Fabnet Peak Effective % . | . . . . . . Robots Rewired . | . . . . . . Allies Hacked . | . . . . . . Hacks Repelled . | . . . . . . Allies | -11 -10 -10 -9 -9 -7 -------- Run | Yrd Mat Min Mat Min Zio Total Allies 11 | . . 2 . . 9 Largest Group 9 | . . 2 1 1 9 Highest-Rated Group 246 | . . 46 31 26 246 Highest-Rated Ally 40 | . . 31 31 26 40 Total Orders . | . . . . . . Ally Attacks 18 | . . . 18 . . Total Damage 234 | . . . 234 . . Kills 5 | . . . 5 . . Allies Corrupted . | . . . . . . Allies Melted . | . . . . . . Intel | -11 -10 -10 -9 -9 -7 ------- Run | Yrd Mat Min Mat Min Zio Robot Analysis Total . | . . . . . . Derelict Logs Recovered 3 | . . 2 . . 1 Drone Launches . | . . . . . . Drone Recoveries . | . . . . . . Exploration | -11 -10 -10 -9 -9 -7 ------------- Run | Yrd Mat Min Mat Min Zio Turns Passed 2427 | 82 9 447 276 25 1588 Spaces Moved 2104 | 57 9 425 203 15 1395 Core 3 | 3 . . . . . Treads . | . . . . . . Legs . | . . . . . . Wheels 2101 | 54 9 425 203 15 1395 Hover . | . . . . . . Flight . | . . . . . . Fastest Speed 50 | 50 80 80 95 110 110 Average Speed 102 | 82 80 82 103 110 110 Slowest Speed 125 | 95 80 95 110 110 125 Overloaded Moves . | . . . . . . Propulsion Burnouts . | . . . . . . Robots Hopped . | . . . . . . Cave-ins Triggered . | . . . . . . Exploration Rate (%) 33 | 5 7 77 19 4 91 Regions Visited 5 Branch Regions 3 Pre-discovered Areas 1 | . . . . . 1 Known Exits Taken . | . . . . . . Unknown Exits Taken 5 | 1 1 1 1 1 . Scrap Searched 5 | . . 1 . 1 3 Spaces Dug 7 | . . . . . 7 Terrain Destroyed 7 | . . . . . 7 Melee . | . . . . . . Projectile . | . . . . . . AOE 7 | . . . . . 7 Terrain Rammed . | . . . . . . Walls Destroyed . | . . . . . . Machines Disabled . | . . . . . . Actions | -11 -10 -10 -9 -9 -7 --------- Run | Yrd Mat Min Mat Min Zio Total 2310 | 82 9 504 260 23 1432 Wait 95 | 3 . 57 23 9 3 Move 2099 | 56 8 424 202 14 1395 Hop . | . . . . . . Pick Up 33 | 7 . 3 11 . 12 Fast Attach 9 | 5 . 1 3 . . Attach 5 | 1 . 1 . . 3 Detach . | . . . . . . Swap 8 | 2 . 2 2 . 2 Drop 16 | 1 . 1 9 . 5 Fire 41 | 7 1 14 10 . 9 Melee 3 | . . . . . 3 Ram 1 | . . 1 . . . Kick . | . . . . . . Crush . | . . . . . . Escape Stasis . | . . . . . . Rewire . | . . . . . . Trap . | . . . . . . Miscellaneous . | . . . . . . Route ------- -11/Scrapyard -10/Materials -10/Mines -9/Materials -9/Mines -7/Zion (discovered 1 exit: [*Pro]) History --------- Turn | Location | Event 9 | -11/Scrapyard | Discovered new exit (range 14) 83 | -11/Scrapyard | Entered Materials 88 | -10/Materials | Discovered new exit (range 5) 92 | -10/Materials | Entered Mines 94 | -10/Mines | Met a Derelict bent on vengeance 363 | -10/Mines | Learned 2 Materials zone layouts 366 | -10/Mines | Learned Materials terminal intel 430 | -10/Mines | Build established: Scavenger-Mutant 534 | -10/Mines | Discovered new exit (range 5) 539 | -10/Mines | Entered Materials 539 | -9/Materials | Accompanied by 1 ally 539 | -9/Materials | Evolved 2 slots: Utility x2 541 | -9/Materials | Loaded intel: 12 terminal locations 544 | -9/Materials | Led the pair of lost Derelicts to an unsafe place 743 | -9/Materials | Discovered new exit (range 16) 815 | -9/Materials | Entered Mines 815 | -9/Mines | Accompanied by 1 ally 816 | -9/Mines | A Derelict revealed a hidden shortcut to a safe place 840 | -9/Mines | Entered Zion 840 | -7/Zion | Accompanied by 1 ally 890 | -7/Zion | Led the pair of lost Derelicts to a safe place 927 | -7/Zion | Learned Factory stockpile data 1015 | -7/Zion | Discovered new exit (range 16) 1108 | -7/Zion | Received a hallucinogenic algorithm 1335 | -7/Zion | Learned location of Warlord (-4) 1610 | -7/Zion | Imprinted 1612 | -7/Zion | Declared Zion's savior 1793 | -7/Zion | Gained Derelict followers 2394 | -7/Zion | Attacked by Zionites 2427 | -7/Zion | Core integrity fell below 50% 2428 | -7/Zion | Core integrity fell below 20% 2428 | -7/Zion | Self-destructed Last Messages --------------- 02405_ Destroyed Rocket Launcher. 02405_ Seismic Detector destroyed. 02405_ Destroyed Seismic Detector. 02409_ E0-68Z(z) destroyed. 02409_ R1-XJV(s) destroyed. 02409_ Wheel destroyed. 02409_ Destroyed Wheel. 18-S2Q(z) bursts out of the Twisted Machinery. 02411_ 18-S2Q(z) pulls a Mak. Laser out of the Twisted Machinery. 02411_ ZQ-BM5(s) destroyed. 02413_ 9K-O6I(l) destroyed. 02415_ Rocket Launcher destroyed. 02415_ Ion Engine destroyed. 02415_ Imp. Light Armor Plating destroyed. 02417_ Critical hit (Burn: +37). 02422_ Critical hit (Burn: +80). 02424_ Wheel destroyed. 02425_ 18-S2Q(z) heat short circuits Mak. Leg. 02427_ Maul destroyed. 02427_ Critical hit (Burn: +37). Map ----- +----------------------------------------------------+ | ??????????????????????????????????????????????? | | ??????????????????????????????????????????????? | | ??????????????????????????????????????????????? | | ??????????????????????????????????????????????? | | ???????????????????????????????????##?????????? | | ?????????????????????????????????## ###??????## | | ????????????????????????????????## ##??####" | | ????????????????????????????????# ####""#" | | ???????????????????????????????##" ###"""""" | | ?????????????????????????????###"# "##""#"""""" | | ???????????????????????????#?#"""" """"""" | | ???????????????????????????#"#""" ##"""" | | ??????????????????????????##"""" | | ?????????????????????????##"" | | ?????????????????????????#""" "" | | ?????????????????????????#"" """ | | ?????????????????????????##"""" """ " | | ?????????????????????##?###""#"" """"" | | ??????????????????????"##"###"#" """ | | ??????????????????????#""" ####"" "" | | ??????????????????????" "###""" " | | ??????????????????????# M """#""""" | | ?????????????????????## """"""" | | ?????????????????????"MM %* | | ?????????????????????" bM=*% | | ???????????????#######@b =%""""" | | ???????????????#"""" zM ""#"" | | ???????????????#""# zz ###""""""" | | ??????????????????##### " #?#""""""" | | ??????????????????????#####?#####""" | | ?????????????????????????????#"#"#" | | ????????????????????????????##""""" """"" | | ????????????????????????????#"" """"" | | ????????????????????????????##" """" | | ???????????????????????????##"" """"" "" | | ???????????????????????????#""" ""##" | | ???????????????????????????##""" ""##""" | | ????????????????????????????##"" """"##"" | | ?????????????????????????????##" ""#"#"""" | | ?????????????????????????????##" ""####""" | | ???????????????"#????#########"" ""###""" | | ???????????????""#####""""""#""" """###"" | | ???#############""""""""""""##"" "####" | | ???#"""""""""" #""" """"""" " "#"" | | ???#"""""""""" #""" """"" | | ???#"" #""" """"" | | ???#"""""" ##"" """"""" "#""" | | ???#""""""" """#"""" """"" | | ???#""""""" """"###" """" | | ???#""""""" ""#####" """ | +----------------------------------------------------+ Best States ------------- Heat Dissipation 28 Energy Generation 10 Energy Capacity 250 Matter Stores 300 Matter Capacity 300 Sight Range 16 Terrain Scan Range 16 Terrain Scan Density 10 Armor Coverage 300 Evasion (%) 44 Item Schematics ----------------- Adv. Melee Analysis Suite | -7/Zion | Archive Mak. Kinetic Plating | -7/Zion | Archive Imp. Focal Shield | -7/Zion | Archive Coolant Injector | -7/Zion | Archive Power Amplifier | -7/Zion | Archive Mak. Leg | -7/Zion | Archive Angular Momentum Engine | -7/Zion | Archive Imp. Carbon-fiber Leg | -7/Zion | Archive Hvy. Plasma Cannon | -7/Zion | Archive Gauss Cannon | -7/Zion | Archive Imp. Shock Absorption System | -7/Zion | Archive Spk. Medium Treads | -7/Zion | Archive Med. Insulated Plating | -7/Zion | Archive Mak. Power Source | -7/Zion | Archive Robot Schematics ------------------ T-07 Excavator | -7/Zion | Archive K-01 Serf | -7/Zion | Archive X-62 Marksman | -7/Zion | Archive H-88 Terminator | -7/Zion | Archive Fabricated ------------ Nothing Alien Tech Used ----------------- None Achievements -------------- None Challenges ------------ None Game ------ Seed SiegeAlertTube Manual? 0 Play Time 00:22:17 Cumulative 48.1 hours Start 2024.04.16 @ 21:25:22 End 2024.04.16 @ 21:47:23 Sessions 1 Manual Loads 0 Difficulty Rogue Special Mode None Game No. 48 Rogue 48 Adventurer 0 Explorer 0 Win Type - Total 0 Types 0/0/0/0/0/0/0/0/0 Lore% 28 Gallery% 42 Achievement% 30 Wizard Run 0 Options --------- Layout 0 ASCII 0 Keyboard 0 Movement Mouse Keybinds 0 Fullscreen 2 Font 24/Smallcaps Map View 183x50 Zoom Use 0% Tactical HUD 1 Map Filters NONE Filters NONE Steam 0 RUN: 9ce76090-2c6e-4d17-9f28-6af72a5a77dd